fUSD/lending_fUSD_20260514
["ID","MTS","AMOUNT","RATE_DAILY","PERIOD"]
[422210831,1778701838000,-500.0,0.00014497,2]
[422210835,1778701838000,-500.0,0.00014497,2]
[422210841,1778701838000,-9060.65,0.00014504,2]
[422210844,1778701838000,-932.46,0.00014504,2]
[422210843,1778701838000,-299.99,0.00014504,2]
[422210846,1778701838000,-9999.99,0.00014504,2]
[422210847,1778701838000,-150.99,0.00014504,2]
[422210845,1778701838000,-1195.48,0.00014504,2]
[422210849,1778701838000,-2209.32785969,0.00014515,2]
[422210850,1778701838000,-174.14,0.00014532,2]
[422210852,1778701838000,-350.0,0.00014569,2]
[422210853,1778701838000,-1851.62962287,0.00014601,2]
[422210851,1778701838000,-167.43,0.00014558,2]
[422210855,1778701838000,-4541.04735905,0.00014605,2]
[422210854,1778701838000,-2500.0,0.00014605,2]
[422210857,1778701838000,-4541.04735905,0.00014638,2]
[422210856,1778701838000,-350.0,0.00014611,2]
[422210858,1778701838000,-150.0,0.00014653,2]
[422210859,1778701838000,-4541.04735905,0.00014671,2]
[422210860,1778701838000,-4541.04735905,0.00014703,2]
[422210861,1778701838000,-500.0,0.00014704,2]
[422210862,1778701838000,-500.0,0.00014704,2]
[422210765,1778701838000,-170.73322927,0.00014156,2]
[422210840,1778701838000,-11231.83,0.00014504,2]
[422210828,1778701838000,-150.0,0.00014487,2]
[422210848,1778701838000,-7266.98,0.00014504,2]
[422210824,1778701838000,-75480.38643939,0.00014452,2]
[422210767,1778701838000,-150.0,0.00014156,2]
[422210826,1778701838000,-150.0,0.00014487,2]
[422210755,1778701838000,-150.0,0.00014156,2]
[422210769,1778701838000,-280.37082092,0.00014156,2]
[422210771,1778701838000,-500.0,0.00014156,2]
[422210773,1778701838000,-500.0,0.00014156,2]
[422210775,1778701838000,-500.0,0.00014156,2]
[422210777,1778701838000,-500.0,0.00014156,2]
[422210786,1778701838000,-252.82399749,0.00014156,2]
[422210780,1778701838000,-500.0,0.00014156,2]
[422210792,1778701838000,-174.14,0.00014202,2]
[422210784,1778701838000,-150.0,0.00014156,2]
[422210790,1778701838000,-227.77564735,0.00014156,2]
[422210782,1778701838000,-500.0,0.00014156,2]
[422210788,1778701838000,-150.0,0.00014156,2]
[422210820,1778701838000,-164.59688049,0.00014442,2]
[422210794,1778701838000,-150.0,0.00014237,2]
[422210809,1778701838000,-2209.32785969,0.00014323,2]
[422210804,1778701838000,-350.0,0.0001431,2]
[422210818,1778701838000,-496.39,0.00014439,2]
[422210822,1778701838000,-1851.62962287,0.00014451,2]
[422210811,1778701838000,-155.21,0.00014384,2]
[422210816,1778701838000,-350.0,0.0001441,2]
[422210806,1778701838000,-150.0,0.0001432,2]
[422210813,1778701838000,-2258.5,0.00014397,2]
[422210800,1778701838000,-496.38,0.00014255,2]
[422210798,1778701838000,-155.21,0.00014247,2]
[422210796,1778701838000,-150.0,0.00014237,2]
[422210802,1778701838000,-1851.62962287,0.00014302,2]
[422210911,1778701839000,-161.73777666,0.00014846,2]
[422210917,1778701839000,-1594.55541,0.0001485,2]
[422210916,1778701839000,-1594.55541,0.0001485,2]
[422210906,1778701839000,-150.0,0.0001482,2]
[422210904,1778701839000,-300.0,0.00014813,2]
[422210896,1778701839000,-4541.04735905,0.00014769,2]
[422210895,1778701839000,-322.0,0.00014767,2]
[422210899,1778701839000,-5000.0,0.000148,2]
[422210902,1778701839000,-4541.04735905,0.00014802,2]
[422210894,1778701839000,-255.0,0.00014753,2]
[422210905,1778701839000,-3468.56551335,0.00014818,2]
[422210898,1778701839000,-322.0,0.00014787,2]
[422210912,1778701839000,-180.08825847,0.00014846,2]
[422210923,1778701839000,-200.0,0.0001488,2]
[422210909,1778701839000,-4541.04735905,0.00014834,2]
[422210907,1778701839000,-15000.0,0.00014832,2]
[422210910,1778701839000,-321.0,0.00014838,2]
[422210913,1778701839000,-380.83069834,0.00014846,2]
[422210915,1778701839000,-9912.5569727,0.0001485,2]
[422210914,1778701839000,-322.0,0.00014846,2]
[422210918,1778701839000,-1594.55541,0.0001485,2]
[422210921,1778701839000,-4541.04735905,0.00014867,2]
[422210919,1778701839000,-225.39312712,0.0001485,2]
[422210926,1778701839000,-500.0,0.00014899,2]
[422210930,1778701839000,-500.0,0.00014899,2]
[422210920,1778701839000,-500.0,0.00014856,2]
[422210928,1778701839000,-500.0,0.00014899,2]
[422210903,1778701839000,-350.0,0.00014813,3]
[422210908,1778701839000,-322.0,0.00014834,2]
[422210901,1778701839000,-225.39312714,0.000148,2]
[422210863,1778701839000,-507.26527955,0.00014704,2]
[422210891,1778701839000,-352.0,0.00014735,2]
[422210864,1778701839000,-500.0,0.00014704,2]
[422210922,1778701839000,-200.0,0.00014879,2]
[422210865,1778701839000,-500.0,0.00014704,2]
[422210866,1778701839000,-500.0,0.00014704,2]
[422210867,1778701839000,-503.35448234,0.00014704,2]
[422210868,1778701839000,-500.0,0.00014704,2]
[422210869,1778701839000,-500.0,0.00014704,2]
[422210871,1778701839000,-2105.3515258,0.00014705,2]
[422210872,1778701839000,-10023.5360065,0.00014705,2]
[422210873,1778701839000,-172943.0413437,0.00014705,2]
[422210875,1778701839000,-500.0,0.00014705,2]
[422210874,1778701839000,-500.0,0.00014705,2]
[422210870,1778701839000,-504.04936232,0.00014704,2]
[422210876,1778701839000,-500.0,0.00014705,2]
[422210878,1778701839000,-500.0,0.00014705,2]
[422210887,1778701839000,-446.6236523,0.00014705,2]
[422210886,1778701839000,-500.0,0.00014705,2]
[422210888,1778701839000,-500.0,0.00014705,2]
[422210877,1778701839000,-500.0,0.00014705,2]
[422210881,1778701839000,-500.0,0.00014705,2]
[422210880,1778701839000,-554.84,0.00014705,2]
[422210879,1778701839000,-500.0,0.00014705,2]
[422210882,1778701839000,-500.0,0.00014705,2]
[422210883,1778701839000,-500.0,0.00014705,2]
[422210885,1778701839000,-500.0,0.00014705,2]
[422210884,1778701839000,-500.0,0.00014705,2]
[422210890,1778701839000,-2209.32785969,0.00014708,2]
[422210889,1778701839000,-500.0,0.00014705,2]
[422210892,1778701839000,-4541.04735905,0.00014736,2]
[422210893,1778701839000,-1851.62962287,0.0001475,2]
[422210931,1778701839000,-500.0,0.00014899,2]
[422210953,1778701839000,-2209.32785969,0.000149,2]
[422210924,1778701839000,-1791.252,0.0001489,2]
[422210927,1778701839000,-500.0,0.00014899,2]
[422210964,1778701839000,-387.0,0.00014976,2]
[422210966,1778701839000,-231.94208573,0.00014986,2]
[422210971,1778701839000,-9510.07551028,0.00014989,2]
[422210972,1778701839000,-164.59688049,0.0001499,2]
[422210969,1778701839000,-189.52806203,0.00014986,2]
[422210968,1778701839000,-150.0,0.00014986,2]
[422210967,1778701839000,-150.0,0.00014986,2]
[422210970,1778701839000,-150.0,0.00014986,2]
[422210973,1778701839000,-164.59688049,0.0001499,2]
[422210975,1778701839000,-500.0,0.00014999,2]
[422210974,1778701839000,-500.0,0.00014999,2]
[422210976,1778701839000,-500.0,0.00014999,2]
[422210963,1778701839000,-332.0,0.00014953,2]
[422210977,1778701839000,-500.0,0.00014999,2]
[422210981,1778701839000,-500.0,0.00014999,2]
[422210984,1778701839000,-500.0,0.00014999,2]
[422210978,1778701839000,-500.0,0.00014999,2]
[422210982,1778701839000,-500.0,0.00014999,2]
[422210983,1778701839000,-288.81182778,0.00014999,2]
[422210980,1778701839000,-500.0,0.00014999,2]
[422210985,1778701839000,-500.0,0.00014999,2]
[422210987,1778701839000,-500.0,0.00014999,2]
[422210989,1778701839000,-500.0,0.00014999,2]
[422210990,1778701839000,-500.0,0.00014999,2]
[422210991,1778701839000,-150.0,0.00014999,2]
[422210986,1778701839000,-500.0,0.00014999,2]
[422210988,1778701839000,-500.0,0.00014999,2]
[422210979,1778701839000,-500.0,0.00014999,2]
[422210962,1778701839000,-322.0,0.00014941,2]
[422210965,1778701839000,-322.0,0.0001498,2]
[422210960,1778701839000,-382.89568368,0.00014917,2]
[422210925,1778701839000,-153.272,0.0001489,2]
[422210929,1778701839000,-500.0,0.00014899,2]
[422210932,1778701839000,-500.0,0.00014899,2]
[422210942,1778701839000,-500.0,0.00014899,2]
[422210936,1778701839000,-500.0,0.00014899,2]
[422210941,1778701839000,-500.0,0.00014899,2]
[422210934,1778701839000,-500.0,0.00014899,2]
[422210935,1778701839000,-500.0,0.00014899,2]
[422210940,1778701839000,-500.0,0.00014899,2]
[422210945,1778701839000,-662232.7134,0.000149,2]
[422210944,1778701839000,-406.61326911,0.000149,2]
[422210961,1778701839000,-350.0,0.00014925,3]
[422210938,1778701839000,-500.0,0.00014899,2]
[422210939,1778701839000,-500.0,0.00014899,2]
[422210933,1778701839000,-500.0,0.00014899,2]
[422210943,1778701839000,-500.0,0.00014899,2]
[422210955,1778701839000,-225.39312712,0.000149,2]
[422210956,1778701839000,-1383.77579624,0.000149,2]
[422210957,1778701839000,-2045.55612377,0.000149,2]
[422210937,1778701839000,-500.0,0.00014899,2]
[422210951,1778701839000,-29079.75595866,0.000149,2]
[422210958,1778701839000,-321.0,0.00014903,2]
[422210954,1778701839000,-2396.0,0.000149,5]
[422210952,1778701839000,-1851.62962287,0.000149,2]
[422210959,1778701839000,-201.75301911,0.00014908,2]
[422210949,1778701839000,-191.98255793,0.000149,2]
[422210948,1778701839000,-4541.04735905,0.000149,2]
[422210947,1778701839000,-2986.0,0.000149,5]
[422210946,1778701839000,-5579.33202662,0.000149,2]
[422210950,1778701839000,-191.98255793,0.000149,2]
[422210997,1778701840000,-4077352.58127166,0.00015,2]
[422210992,1778701840000,-300.0,0.00014999,2]
[422210996,1778701840000,-300.0,0.00014999,2]
[422210994,1778701840000,-300.0,0.00014999,2]
[422210993,1778701840000,-300.0,0.00014999,2]
[422210995,1778701840000,-300.0,0.00014999,2]
[422210998,1778701840000,-8731.40626324,0.00015,2]
[422211015,1778701840000,-1656.41790583,0.00015,2]
[422211001,1778701840000,-7628.20684927,0.00015,2]
[422210999,1778701840000,-1764949.00932232,0.00015,2]
[422211002,1778701840000,-902102.43111909,0.00015,2]
[422211003,1778701840000,-2019.91513355,0.00015,2]
[422211014,1778701840000,-167256.69517108,0.00015,2]
[422211016,1778701840000,-1263.6134492,0.00015,2]
[422211000,1778701840000,-1587.87614288,0.00015,2]
[422211020,1778701843000,-1027.23724345,0.00015,2]
[422211018,1778701843000,-503.0,0.00015,2]
[422211027,1778701845000,-408.50698965,0.00015,2]
[422211030,1778701846000,-6189.08635871,0.00015,2]
[422211029,1778701846000,-966.8877669,0.00015,2]
[422211028,1778701846000,-5408.8032247,0.00015,2]
[422211043,1778702552000,4670.20012795,8e-05,2]
[422211045,1778702729000,154.98,6.47e-05,2]
[422211047,1778702729000,154.98,7.247e-05,2]
[422211048,1778702729000,154.98,7.636e-05,2]
[422211046,1778702729000,154.98,6.859e-05,2]
[422211052,1778702730000,154.98,9.19e-05,2]
[422211051,1778702730000,154.98,8.801e-05,2]
[422211050,1778702730000,154.98,8.413e-05,2]
[422211049,1778702730000,154.98,8.024e-05,2]
[422211054,1778702731000,154.98,9.967e-05,2]
[422211053,1778702731000,154.98,9.578e-05,2]
[422211059,1778702824000,5530.0,0.000119,5]
[422211064,1778703031000,-353.32,0.000107,2]
[422211061,1778703031000,-154.98,0.00010355,2]
[422211062,1778703031000,-1200.0,0.00010699,2]
[422211063,1778703031000,-832.91052827,0.000107,2]
[422211067,1778703031000,-154.98,0.00010744,2]
[422211066,1778703031000,-13906.88478449,0.000107,2]
[422211068,1778703031000,-154.98,0.00011132,2]
[422211069,1778703031000,-198.19441447,0.00011391,2]
[422211073,1778703031000,-154.98,0.00011909,2]
[422211070,1778703031000,-154.98,0.00011521,2]
[422211071,1778703031000,-1680.0,0.00011769,2]
[422211075,1778703031000,-164.6,0.00012103,2]
[422211065,1778703031000,-17910.66410043,0.000107,2]
[422211087,1778703032000,-167.56,0.00012602,2]
[422211079,1778703032000,-154.98,0.00012298,2]
[422211081,1778703032000,-671.31,0.00012422,2]
[422211083,1778703032000,-592.5,0.00012465,2]
[422211076,1778703032000,-200.0,0.00012138,2]
[422211078,1778703032000,-150.0,0.00012286,2]
[422211077,1778703032000,-4073.8,0.0001219,2]
[422211092,1778703032000,-316.94,0.00012757,2]
[422211089,1778703032000,-154.98,0.00012687,2]
[422211094,1778703032000,-2000.0,0.00012815,2]
[422211097,1778703032000,-13754.19267631,0.00012893,2]
[422211093,1778703032000,-186.4,0.00012757,2]
[422211091,1778703032000,-671.31,0.00012732,2]
[422211096,1778703032000,-9999.99,0.00012893,2]
[422211098,1778703032000,-11245.79732369,0.00012893,2]
[422211099,1778703032000,-15524.80676801,0.00012893,2]
[422211100,1778703032000,-290.05642929,0.00012893,2]
[422211085,1778703032000,-376.19,0.00012506,2]
[422211105,1778703037000,-999.99,0.00012893,2]
[422211106,1778703037000,-1627.29,0.00012893,2]
[422211102,1778703037000,-150.99,0.00012893,2]
[422211116,1778703037000,-671.31,0.00013353,2]
[422211101,1778703037000,-1866.5668027,0.00012893,2]
[422211104,1778703037000,-25989.7,0.00012893,2]
[422211103,1778703037000,-19999.99,0.00012893,2]
[422211109,1778703037000,-9999.99,0.00012893,2]
[422211112,1778703037000,-150.0,0.00013085,2]
[422211113,1778703037000,-111839.00113806,0.00013086,2]
[422211108,1778703037000,-9947.68,0.00012893,2]
[422211107,1778703037000,-9999.99,0.00012893,2]
[422211114,1778703037000,-7636.43351349,0.00013222,2]
[422211115,1778703037000,-160.0,0.00013332,2]
[422211111,1778703037000,-671.31,0.00013043,2]
[422211110,1778703037000,-2351.0,0.00012946,2]
[422211118,1778703037000,-7636.43351346,0.00013408,2]
[422211117,1778703037000,-309.19,0.00013395,2]
[422211185,1778703038000,-500.0,0.00013535,2]
[422211174,1778703038000,-500.0,0.00013535,2]
[422211163,1778703038000,-500.0,0.00013535,2]
[422211182,1778703038000,-500.0,0.00013535,2]
[422211172,1778703038000,-500.0,0.00013535,2]
[422211205,1778703038000,-500.0,0.00013535,2]
[422211167,1778703038000,-500.0,0.00013535,2]
[422211165,1778703038000,-500.0,0.00013535,2]
[422211161,1778703038000,-500.0,0.00013535,2]
[422211176,1778703038000,-500.0,0.00013535,2]
[422211146,1778703038000,-500.0,0.00013535,2]
[422211170,1778703038000,-500.0,0.00013535,2]
[422211181,1778703038000,-500.0,0.00013535,2]
[422211191,1778703038000,-194.09460408,0.00013535,2]
[422211179,1778703038000,-500.0,0.00013535,2]
[422211192,1778703038000,-500.0,0.00013535,2]
[422211144,1778703038000,-500.0,0.00013535,2]
[422211194,1778703038000,-500.0,0.00013535,2]
[422211197,1778703038000,-500.0,0.00013535,2]
[422211203,1778703038000,-500.0,0.00013535,2]
[422211199,1778703038000,-500.0,0.00013535,2]
[422211189,1778703038000,-500.0,0.00013535,2]
[422211195,1778703038000,-500.0,0.00013535,2]
[422211209,1778703038000,-500.0,0.00013535,2]
[422211201,1778703038000,-500.0,0.00013535,2]
[422211207,1778703038000,-500.0,0.00013535,2]
[422211187,1778703038000,-500.0,0.00013535,2]
[422211159,1778703038000,-500.0,0.00013535,2]
[422211141,1778703038000,-500.0,0.00013535,2]
[422211143,1778703038000,-500.0,0.00013535,2]
[422211128,1778703038000,-500.0,0.00013535,2]
[422211120,1778703038000,-1043.18,0.00013471,2]
[422211123,1778703038000,-150.0,0.00013488,2]
[422211119,1778703038000,-1021.7174238,0.00013436,2]
[422211121,1778703038000,-231.94208573,0.00013488,2]
[422211124,1778703038000,-150.0,0.00013488,2]
[422211122,1778703038000,-150.0,0.00013488,2]
[422211127,1778703038000,-10571.03,0.00013507,2]
[422211125,1778703038000,-150.0,0.00013488,2]
[422211129,1778703038000,-500.0,0.00013535,2]
[422211135,1778703038000,-500.0,0.00013535,2]
[422211130,1778703038000,-500.0,0.00013535,2]
[422211148,1778703038000,-500.0,0.00013535,2]
[422211132,1778703038000,-500.0,0.00013535,2]
[422211133,1778703038000,-500.0,0.00013535,2]
[422211131,1778703038000,-500.0,0.00013535,2]
[422211140,1778703038000,-500.0,0.00013535,2]
[422211136,1778703038000,-500.0,0.00013535,2]
[422211138,1778703038000,-500.0,0.00013535,2]
[422211137,1778703038000,-500.0,0.00013535,2]
[422211142,1778703038000,-500.0,0.00013535,2]
[422211151,1778703038000,-500.0,0.00013535,2]
[422211153,1778703038000,-500.0,0.00013535,2]
[422211157,1778703038000,-500.0,0.00013535,2]
[422211155,1778703038000,-500.0,0.00013535,2]
[422211145,1778703038000,-500.0,0.00013535,2]
[422211134,1778703038000,-500.0,0.00013535,2]
[422211211,1778703038000,-500.0,0.00013535,2]
[422211126,1778703038000,-218.8,0.00013507,2]
[422211215,1778703038000,-500.0,0.00013535,2]
[422211258,1778703038000,-500.0,0.00013698,2]
[422211280,1778703038000,-500.0,0.00013698,2]
[422211278,1778703038000,-500.0,0.00013698,2]
[422211282,1778703038000,-500.0,0.00013698,2]
[422211268,1778703038000,-500.0,0.00013698,2]
[422211272,1778703038000,-500.0,0.00013698,2]
[422211276,1778703038000,-500.0,0.00013698,2]
[422211283,1778703038000,-500.0,0.00013698,2]
[422211285,1778703038000,-504.04936232,0.00013698,2]
[422211284,1778703038000,-228.74977128,0.00013698,2]
[422211286,1778703038000,-500.0,0.00013698,2]
[422211290,1778703038000,-500.0,0.00013698,2]
[422211288,1778703038000,-500.0,0.00013698,2]
[422211287,1778703038000,-500.0,0.00013698,2]
[422211291,1778703038000,-500.0,0.00013698,2]
[422211294,1778703038000,-500.0,0.00013698,2]
[422211296,1778703038000,-500.0,0.00013698,2]
[422211302,1778703038000,-500.0,0.00013698,2]
[422211293,1778703038000,-500.0,0.00013698,2]
[422211295,1778703038000,-500.0,0.00013698,2]
[422211292,1778703038000,-500.0,0.00013698,2]
[422211301,1778703038000,-500.0,0.00013698,2]
[422211297,1778703038000,-500.0,0.00013698,2]
[422211298,1778703038000,-503.35448234,0.00013698,2]
[422211300,1778703038000,-500.0,0.00013698,2]
[422211299,1778703038000,-500.0,0.00013698,2]
[422211213,1778703038000,-500.0,0.00013535,2]
[422211264,1778703038000,-500.0,0.00013698,2]
[422211270,1778703038000,-500.0,0.00013698,2]
[422211289,1778703038000,-500.0,0.00013698,2]
[422211274,1778703038000,-500.0,0.00013698,2]
[422211262,1778703038000,-500.0,0.00013698,2]
[422211221,1778703038000,-500.0,0.00013535,2]
[422211223,1778703038000,-500.0,0.00013535,2]
[422211217,1778703038000,-500.0,0.00013535,2]
[422211225,1778703038000,-500.0,0.00013535,2]
[422211234,1778703038000,-2000.0,0.00013536,2]
[422211233,1778703038000,-42411.6128,0.00013536,2]
[422211231,1778703038000,-1791.252,0.00013535,2]
[422211229,1778703038000,-500.0,0.00013535,2]
[422211227,1778703038000,-600.0,0.00013535,2]
[422211230,1778703038000,-153.272,0.00013535,2]
[422211232,1778703038000,-12249.8823,0.00013536,2]
[422211236,1778703038000,-168.51,0.00013557,2]
[422211251,1778703038000,-208.27114069,0.00013682,2]
[422211219,1778703038000,-500.0,0.00013535,2]
[422211252,1778703038000,-20901.53804812,0.00013683,2]
[422211254,1778703038000,-500.0,0.00013698,2]
[422211260,1778703038000,-500.0,0.00013698,2]
[422211257,1778703038000,-500.0,0.00013698,2]
[422211248,1778703038000,-671.31,0.00013664,2]
[422211240,1778703038000,-5000.0,0.00013599,2]
[422211246,1778703038000,-552.33196492,0.00013645,2]
[422211266,1778703038000,-507.26527955,0.00013698,2]
[422211244,1778703038000,-167.56,0.00013642,2]
[422211242,1778703038000,-1021.71742376,0.00013599,2]
[422211237,1778703038000,-184.0,0.00013591,2]
[422211235,1778703038000,-698.86,0.00013545,2]
[422211239,1778703038000,-7636.43351346,0.00013595,2]
[422211342,1778703039000,-542.0,0.00014156,2]
[422211340,1778703039000,-500.0,0.00014156,2]
[422211343,1778703039000,-500.0,0.00014156,2]
[422211331,1778703039000,-500.0,0.00014156,2]
[422211349,1778703039000,-273.0,0.00014156,2]
[422211338,1778703039000,-500.0,0.00014156,2]
[422211341,1778703039000,-500.0,0.00014156,2]
[422211335,1778703039000,-500.0,0.00014156,2]
[422211332,1778703039000,-542.0,0.00014156,2]
[422211329,1778703039000,-500.0,0.00014156,2]
[422211347,1778703039000,-500.0,0.00014156,2]
[422211339,1778703039000,-542.0,0.00014156,2]
[422211345,1778703039000,-500.0,0.00014156,2]
[422211350,1778703039000,-542.0,0.00014156,2]
[422211344,1778703039000,-500.0,0.00014156,2]
[422211346,1778703039000,-542.0,0.00014156,2]
[422211361,1778703039000,-150.0,0.00014156,2]
[422211351,1778703039000,-500.0,0.00014156,2]
[422211352,1778703039000,-542.0,0.00014156,2]
[422211358,1778703039000,-542.0,0.00014156,2]
[422211359,1778703039000,-150.0,0.00014156,2]
[422211356,1778703039000,-542.0,0.00014156,2]
[422211354,1778703039000,-542.0,0.00014156,2]
[422211355,1778703039000,-542.0,0.00014156,2]
[422211353,1778703039000,-475.9098632,0.00014156,2]
[422211330,1778703039000,-542.0,0.00014156,2]
[422211348,1778703039000,-500.0,0.00014156,2]
[422211334,1778703039000,-542.0,0.00014156,2]
[422211303,1778703039000,-500.0,0.00013698,2]
[422211327,1778703039000,-500.0,0.00014156,2]
[422211357,1778703039000,-542.0,0.00014156,2]
[422211313,1778703039000,-552.33196492,0.00013854,2]
[422211308,1778703039000,-170.81,0.00013699,2]
[422211307,1778703039000,-530.69942544,0.00013698,2]
[422211312,1778703039000,-7636.43351346,0.00013781,2]
[422211309,1778703039000,-200.0,0.00013699,2]
[422211311,1778703039000,-1021.71742376,0.00013761,2]
[422211304,1778703039000,-500.0,0.00013698,2]
[422211305,1778703039000,-500.0,0.00013698,2]
[422211310,1778703039000,-29999.99,0.00013699,2]
[422211306,1778703039000,-500.0,0.00013698,2]
[422211314,1778703039000,-868.78738222,0.00013858,2]
[422211323,1778703039000,-1021.71742376,0.00014087,2]
[422211315,1778703039000,-150.0,0.00013862,2]
[422211324,1778703039000,-7636.43351346,0.00014154,2]
[422211316,1778703039000,-1021.71742376,0.00013924,2]
[422211319,1778703039000,-500.0,0.0001399,2]
[422211317,1778703039000,-7636.43351346,0.00013968,2]
[422211318,1778703039000,-1375.96049342,0.00013971,2]
[422211321,1778703039000,-4736.36490046,0.00014054,2]
[422211322,1778703039000,-552.33196492,0.00014063,2]
[422211320,1778703039000,-250.0,0.00014,2]
[422211326,1778703039000,-500.0,0.00014156,2]
[422211328,1778703039000,-542.0,0.00014156,2]
[422211336,1778703039000,-542.0,0.00014156,2]
[422211325,1778703039000,-500.0,0.00014156,2]
[422211337,1778703039000,-500.0,0.00014156,2]
[422211333,1778703039000,-500.0,0.00014156,2]
[422211360,1778703039000,-542.0,0.00014156,2]
[422211372,1778703039000,-250.0,0.00014156,2]
[422211363,1778703039000,-150.0,0.00014156,2]
[422211396,1778703039000,-7636.43351346,0.00014341,2]
[422211394,1778703039000,-547.0,0.00014301,2]
[422211395,1778703039000,-350.0,0.00014306,3]
[422211392,1778703039000,-1021.71742376,0.00014249,2]
[422211402,1778703039000,-2967.76,0.00014497,2]
[422211401,1778703039000,-1237.58,0.00014497,2]
[422211403,1778703039000,-7442.17,0.00014497,2]
[422211400,1778703039000,-552.33196492,0.00014482,2]
[422211404,1778703039000,-7368.74,0.00014504,2]
[422211405,1778703039000,-713.3,0.0001451,2]
[422211406,1778703039000,-7636.43351346,0.00014527,2]
[422211409,1778703039000,-2823.0,0.000146,2]
[422211389,1778703039000,-255.0,0.00014197,2]
[422211407,1778703039000,-1021.71742376,0.00014575,2]
[422211408,1778703039000,-505.5976296,0.0001459,2]
[422211411,1778703039000,-350.0,0.00014616,3]
[422211414,1778703039000,-1117.63006433,0.000147,2]
[422211416,1778703039000,-1120.75264261,0.000147,2]
[422211413,1778703039000,-552.33196492,0.00014691,2]
[422211412,1778703039000,-167.56,0.00014682,2]
[422211419,1778703039000,-1070.90793938,0.000147,2]
[422211417,1778703039000,-1007.51138078,0.000147,2]
[422211421,1778703039000,-1142.14904767,0.000147,2]
[422211415,1778703039000,-1007.70965794,0.000147,2]
[422211362,1778703039000,-150.0,0.00014156,2]
[422211420,1778703039000,-1051.94947183,0.000147,2]
[422211410,1778703039000,-150.0,0.00014612,2]
[422211393,1778703039000,-552.33196492,0.00014273,2]
[422211418,1778703039000,-1019.57636162,0.000147,2]
[422211397,1778703039000,-170.81,0.00014384,2]
[422211391,1778703039000,-3292.0,0.0001424,2]
[422211367,1778703039000,-150.0,0.00014156,2]
[422211369,1778703039000,-150.0,0.00014156,2]
[422211365,1778703039000,-150.0,0.00014156,2]
[422211366,1778703039000,-542.0,0.00014156,2]
[422211364,1778703039000,-150.0,0.00014156,2]
[422211371,1778703039000,-150.0,0.00014156,2]
[422211373,1778703039000,-542.0,0.00014156,2]
[422211370,1778703039000,-200.82917697,0.00014156,2]
[422211368,1778703039000,-150.0,0.00014156,2]
[422211376,1778703039000,-500.0,0.00014156,2]
[422211385,1778703039000,-542.0,0.00014156,2]
[422211384,1778703039000,-542.0,0.00014156,2]
[422211374,1778703039000,-500.0,0.00014156,2]
[422211386,1778703039000,-542.0,0.00014156,2]
[422211378,1778703039000,-500.0,0.00014156,2]
[422211399,1778703039000,-2000.0,0.00014417,2]
[422211398,1778703039000,-1021.71742376,0.00014412,2]
[422211388,1778703039000,-500.0,0.0001419,2]
[422211382,1778703039000,-542.0,0.00014156,2]
[422211377,1778703039000,-542.0,0.00014156,2]
[422211390,1778703039000,-150.0,0.00014237,2]
[422211383,1778703039000,-612.4347726,0.00014156,2]
[422211387,1778703039000,-542.0,0.00014156,2]
[422211380,1778703039000,-500.0,0.00014156,2]